[Event "Central-SRB chT 2018"]
[Site "Kragujevac"]
[Date "2018.09.14"]
[Round "1"]
[White "Radovic, Janko"]
[Black "Dimitrijevic, Radmilo"]
[Result "1/2-1/2"]
[ECO "B31"]
[WhiteElo "2405"]
[BlackElo "2247"]
[Annotator "ChessBase"]
[PlyCount "30"]
[EventDate "2018.09.14"]
[EventType "team-tourn"]
[EventCountry "SRB"]
[SourceTitle "playchess.com"]
[Source "ChessBase"]
[SourceQuality "1"]
[TimeControl "40/5400+30:1800+30"]

1. e4 {[%emt 0:00:00]} c5 {[%emt 0:00:00]} 2. Nf3 {[%emt 0:00:02]} Nc6 {[%emt 0:00:09]} 3. Bb5 {[%emt 0:00:30]} g6 {[%emt 0:00:30]} 4. O-O {[%emt 0:00:30]} Bg7 {[%emt 0:00:30]} 5. Re1 {[%emt 0:00:30]} Nf6 {[%emt 0:06:31]} 6. e5 {[%emt 0:00:00]} Nd5 {[%emt 0:01:44]} 7. Nc3 {[%emt 0:00:00]} Nxc3 {[%emt 0:20:04]} 8. dxc3 {[%emt 0:04:20]} a6 9. Bxc6 {[%emt 0:07:52]} dxc6 {[%emt 0:05:02]} 10. Qxd8+ {[%emt 0:21:02]} Kxd8 {[%emt 0:18:13]} 11. Ng5 Be6 12. Nxe6+ {[%emt 0:02:44]} fxe6 {[%emt 0:00:36]} 13. a4 {[%emt 0:11:48]} a5 {[%emt 0:10:09]} 14. Bg5 {[%emt 0:03:40]} Kc7 {[%emt 0:13:38]} 15. f4 {[%emt 0:09:38]} Rag8 {[%emt 0:06:31]} 1/2-1/2

[Event "Central-SRB chT 2018"]
[Site "Kragujevac"]
[Date "2018.09.14"]
[Round "1"]
[White "Pavlovic, Dejan S"]
[Black "Mijailovic, Zoran"]
[Result "1-0"]
[ECO "C43"]
[WhiteElo "2396"]
[BlackElo "2400"]
[Annotator "ChessBase"]
[PlyCount "85"]
[EventDate "2018.09.14"]
[EventType "team-tourn"]
[EventCountry "SRB"]
[SourceTitle "playchess.com"]
[Source "ChessBase"]
[SourceQuality "1"]
[TimeControl "40/5400+30:1800+30"]

1. e4 {[%emt 0:00:00]} e5 {[%emt 0:00:00]} 2. Nf3 {[%emt 0:00:00]} Nf6 {[%emt 0:00:05]} 3. d4 {[%emt 0:00:25]} Nxe4 {[%emt 0:01:09]} 4. Bd3 {[%emt 0:00:22]} d5 {[%emt 0:01:57]} 5. Nxe5 {[%emt 0:00:16]} Be6 {[%emt 0:02:49]} 6. O-O {[%emt 0:01:23]} Nd7 {[%emt 0:01:24]} 7. Bxe4 {[%emt 0:02:21]} dxe4 {[%emt 0:19:10]} 8. Bf4 {[%emt 0:00:38]} Nxe5 {[%emt 0:06:51]} 9. Bxe5 {[%emt 0:01:37]} Bd6 {[%emt 0:04:08]} 10. Nc3 {[%emt 0:04:53]} Bxe5 {[%emt 0:20:31]} 11. dxe5 {[%emt 0:00:08]} Qg5 {[%emt 0:01:46]} 12. Qd4 {[%emt 0:02:57]} e3 {[%emt 0:02:02]} 13. f4 {[%emt 0:03:33]} Qg6 {[%emt 0:00:56]} 14. Qxe3 {[%emt 0:06:37]} O-O {[%emt 0:03:19]} 15. Rf2 {[%emt 0:14:31]} b6 {[%emt 0:12:09]} 16. Rd1 {[%emt 0:03:09]} Rad8 {[%emt 0:02:11]} 17. Rfd2 {[%emt 0:03:41]} Rxd2 {[%emt 0:00:23]} 18. Rxd2 {[%emt 0:00:13]} f6 {[%emt 0:03:34]} 19. Nb5 {[%emt 0:06:55]} Bc4 {[%emt 0:04:10]} 20. e6 {[%emt 0:24:40]} Bxb5 {[%emt 0:06:58]} 21. Qb3 {[%emt 0:00:28]} Re8 {[%emt 0:00:58]} 22. Qxb5 {[%emt 0:01:43]} f5 {[%emt 0:00:12]} 23. Re2 {[%emt 0:01:14]} Re7 {[%emt 0:01:58]} 24. Qd5 {[%emt 0:01:26]} h6 {[%emt 0:00:37]} 25. Re5 {[%emt 0:02:14]} Kh7 {[%emt 0:00:38]} 26. a4 {[%emt 0:01:21]} a5 {[%emt 0:01:06]} 27. c3 {[%emt 0:00:40]} Qe8 {[%emt 0:00:22]} 28. b3 {[%emt 0:00:29]} Kh8 {[%emt 0:00:36]} 29. h3 {[%emt 0:02:54]} Qg6 {[%emt 0:00:51]} 30. b4 {[%emt 0:02:49]} Kh7 {[%emt 0:00:38]} 31. bxa5 {[%emt 0:00:20]} bxa5 {[%emt 0:00:01]} 32. Kh2 {[%emt 0:02:59]} Qf6 {[%emt 0:01:45]} 33. c4 {[%emt 0:01:51]} Kg6 {[%emt 0:00:37]} 34. Qxa5 {[%emt 0:04:12]} Rxe6 {[%emt 0:00:06]} 35. Rxe6 {[%emt 0:00:41]} Qxe6 {[%emt 0:00:02]} 36. Qxc7 {[%emt 0:00:10]} h5 {[%emt 0:00:29]} 37. c5 {[%emt 0:00:46]} Kh7 {[%emt 0:00:21]} 38. Qd6 {[%emt 0:00:40]} Qe3 {[%emt 0:00:13]} 39. Qe5 {[%emt 0:00:36]} Qd3 {[%emt 0:00:02]} 40. h4 {[%emt 0:00:00]} Qc2 {[%emt 0:00:00]} 41. a5 {[%emt 0:01:30]} g6 {[%emt 0:01:20]} 42. a6 {[%emt 0:23:27]} Qf2 {[%emt 0:01:45]} 43. a7 {[%emt 0:02:43]} 1-0

[Event "Central-SRB chT 2018"]
[Site "Kragujevac"]
[Date "2018.09.14"]
[Round "1"]
[White "Zlatanovic, Boroljub"]
[Black "Nestorovic, Dejan"]
[Result "1-0"]
[ECO "A22"]
[WhiteElo "2371"]
[BlackElo "2340"]
[Annotator "NA"]
[PlyCount "71"]
[EventDate "2018.09.14"]
[EventType "team-tourn"]
[EventCountry "SRB"]
[SourceTitle "playchess.com"]
[Source "ChessBase"]
[SourceQuality "1"]
[TimeControl "40/5400+30:1800+30"]

1. c4 {[%emt 0:00:00]} e5 {[%emt 0:00:00]} 2. Nc3 {[%emt 0:00:00]} Nf6 {[%emt 0:00:00]} 3. g3 {[%emt 0:00:00]} d5 {[%emt 0:00:00]} 4. cxd5 {[%emt 0:00:04]} Nxd5 {[%emt 0:00:10]} 5. Bg2 {[%emt 0:00:28]} Nb6 {[%emt 0:00:11]} 6. Nf3 {[%emt 0:00:32]} Nc6 {[%emt 0:00:13]} 7. O-O {[%emt 0:01:11]} Be7 {[%emt 0:00:11]} 8. d3 {[%emt 0:01:38]} O-O {[%emt 0:00:11]} 9. Be3 {[%emt 0:01:28]} Re8 {[%emt 0:00:50]} 10. Rc1 {[%emt 0:04:31]} Bf8 {[%emt 0:03:33]} 11. Na4 {[%emt 0:11:10] LiveBook: 30 Games} Nd4 {[%emt 0:04:11]} 12. Nc5 {[%emt 0:06:06]} Bxc5 {[%emt 0:07:35] A29: Englische Eröffnung (Vierspringer-Variante)} (12... a5 13. Bxd4 exd4 14. Nb3 g5 15. Qd2 g4 16. Nh4 Re5 17. Qf4 Qd6 18. e3 Rb5 19. Rxc7 Qxf4 20. exf4 {0-1 (28) Granda Zuniga,J (2648)-So,W (2794) Douglas 2016}) 13. Rxc5 {[%emt 0:00:25]} Qd6 {[%emt 0:00:09]} 14. b4 {[%emt 0:08:49]} c6 {[%emt 0:28:23]} 15. Nxd4 {[%emt 0:06:46]} exd4 {[%emt 0:00:24]} 16. Bf4 {[%emt 0:00:03]} Qe7 {[%emt 0:00:15] [#]} 17. a4 $146 {[%emt 0:12:01]} ({Vorgänger:} 17. e3 dxe3 18. fxe3 Be6 19. a3 Rad8 20. e4 {½-½ (60) Belous,V (2524)-Bukavshin,I (2504) Sochi 2012}) 17... Bg4 {[%emt 0:23:14]} 18. Re1 {[%emt 0:03:22]} a5 {[%emt 0:02:08]} 19. Rxa5 {[%emt 0:06:09]} Qxb4 {[%emt 0:01:37]} 20. Bd2 {[%emt 0:00:43]} Qe7 {[%emt 0:08:26]} 21. Qb3 {[%emt 0:03:40]} Rxa5 {[%emt 0:08:33]} 22. Bxa5 {[%emt 0:00:16]} Nc8 {[%emt 0:00:17]} 23. h3 {[%emt 0:06:44]} Be6 {[%emt 0:03:58]} 24. Qb4 {[%emt 0:04:30]} (24. Qb2 $16) 24... b6 {[%emt 0:02:33]} 25. Qxe7 $14 {[%emt 0:00:57]} Rxe7 {[%emt 0:00:08]} 26. Bd2 {[%emt 0:01:16]} c5 {[%emt 0:04:38]} 27. a5 {[%emt 0:04:58]} b5 {[%emt 0:00:46]} 28. Rc1 {[%emt 0:00:17]} c4 {[%emt 0:00:12]} 29. Bb4 {[%emt 0:00:09]} Rc7 {[%emt 0:00:25]} 30. e3 {[%emt 0:03:20]} dxe3 {[%emt 0:00:31]} 31. fxe3 {[%emt 0:00:01]} f5 {[%emt 0:00:51]} 32. dxc4 {[%emt 0:01:36]} bxc4 {[%emt 0:00:35]} 33. Bc3 {[%emt 0:03:31]} Kf7 {[%emt 0:00:28]} 34. Rb1 {[%emt 0:01:08]} Ne7 {[%emt 0:00:40]} 35. a6 {[%emt 0:02:20]} Bc8 {[%emt 0:00:39]} 36. Rb7 {[%emt 0:01:15]} 1-0

[Event "Central-SRB chT 2018"]
[Site "Kragujevac"]
[Date "2018.09.14"]
[Round "1"]
[White "Radosavljevic, Slobodan S"]
[Black "Jovanovic, Bojan P"]
[Result "1-0"]
[ECO "A41"]
[WhiteElo "2106"]
[BlackElo "2275"]
[Annotator "ChessBase"]
[PlyCount "89"]
[EventDate "2018.09.14"]
[EventType "team-tourn"]
[EventCountry "SRB"]
[SourceTitle "playchess.com"]
[Source "ChessBase"]
[SourceQuality "1"]
[TimeControl "40/5400+30:1800+30"]

1. d4 d6 2. Nf3 Bg4 3. Nbd2 Nd7 4. e4 e5 5. c3 Ngf6 6. Bd3 Be7 7. O-O c6 8. h3 Bh5 9. a4 O-O 10. Re1 Re8 11. Nf1 Bf8 12. Ng3 Bxf3 13. Qxf3 exd4 14. cxd4 g6 15. a5 Bg7 16. b4 Nd5 17. Ba3 Nc7 18. Bc4 Qf6 19. Qxf6 Nxf6 20. Bf1 h5 21. h4 Nd7 22. Red1 a6 23. Rac1 d5 24. e5 Bh6 25. Rc2 f6 26. exf6 Nxf6 27. Bd3 Kf7 28. Bc1 Bg7 29. Bf4 Ne6 30. Be5 Ng4 31. Bxg7 Kxg7 32. Be2 Nh6 33. Kf1 Rf8 34. Rc3 Rf4 35. Re3 Re8 36. Bxh5 Rxh4 37. Rde1 gxh5 38. Rxe6 Rf8 39. Re7+ Rf7 40. R1e6 Rxe7 41. Rxe7+ Kg6 42. Re6+ Kg5 43. Rxh6 Rxd4 44. Rxh5+ Kg4 45. Rh4+ 1-0